Workbook

Sheet Presupuesto para la boda
B2: CARLOTA + FEDERICO ENLACE MATRIMONIAL
B5: CATEGORÍA | C5: COSTE ESTIMADO | D5: COSTE REAL | E5: VARIANZA | F5: PRESUPUESTO % | J5: Sin ordenar | K5: Costes estimados | L5: Costes reales | M5: Coste estimado - valor de rango | N5: Rango | O5: N.º | P5: Ordenado
B6: =P6 -> Recepción | C6: =VLOOKUP(TBL_Summary[[#This Row],[CATEGORÍA]],TBL_RankingData,2,FALSE) -> 14,500 € | D6: =IF(VLOOKUP(TBL_Summary[[#This Row],[CATEGORÍA]],TBL_RankingData,3,FALSE)=0,"",VLOOKUP(TBL_Summary[[#This Row],[CATEGORÍA]],TBL_RankingData,3,FALSE)) -> 12,800 € | E6: =IF(OR(TBL_Summary[[#This Row],[COSTE ESTIMADO]]="",TBL_Summary[[#This Row],[COSTE REAL]]=""),"",TBL_Summary[[#This Row],[COSTE ESTIMADO]]-TBL_Summary[[#This Row],[COSTE REAL]]) -> 1,700 € | F6: =TBL_Summary[[#This Row],[COSTE ESTIMADO]]/SUM(TBL_Summary[COSTE ESTIMADO]) -> 48.7% | J6: Recepción | K6: =TBL_Reception[[#Totals],[ESTIMADO]] -> 14500 | L6: =TBL_Reception[[#Totals],[REAL]] -> 12800 | M6: =K6-O6/100 -> 14499.99 | N6: =_xlfn.RANK.AVG(M6,$M$6:$M$15) -> 1 | O6: 1 | P6: =INDEX(TBL_RankingData,MATCH(O6,$N$6:$N$15,0),1) -> Recepción
B7: =P7 -> Atuendo | C7: =VLOOKUP(TBL_Summary[[#This Row],[CATEGORÍA]],TBL_RankingData,2,FALSE) -> 4,000 € | D7: =IF(VLOOKUP(TBL_Summary[[#This Row],[CATEGORÍA]],TBL_RankingData,3,FALSE)=0,"",VLOOKUP(TBL_Summary[[#This Row],[CATEGORÍA]],TBL_RankingData,3,FALSE)) -> 2,900 € | E7: =IF(OR(TBL_Summary[[#This Row],[COSTE ESTIMADO]]="",TBL_Summary[[#This Row],[COSTE REAL]]=""),"",TBL_Summary[[#This Row],[COSTE ESTIMADO]]-TBL_Summary[[#This Row],[COSTE REAL]]) -> 1,100 € | F7: =TBL_Summary[[#This Row],[COSTE ESTIMADO]]/SUM(TBL_Summary[COSTE ESTIMADO]) -> 13.4% | J7: Atuendo | K7: =TBL_Attire[[#Totals],[ESTIMADO]] -> 4000 | L7: =TBL_Attire[[#Totals],[REAL]] -> 2900 | M7: =K7-O7/100 -> 3999.98 | N7: 2 | O7: 2 | P7: Atuendo
B8: Flores y decoración | C8: =VLOOKUP(TBL_Summary[[#This Row],[CATEGORÍA]],TBL_RankingData,2,FALSE) -> 3,000 € | D8: =IF(VLOOKUP(TBL_Summary[[#This Row],[CATEGORÍA]],TBL_RankingData,3,FALSE)=0,"",VLOOKUP(TBL_Summary[[#This Row],[CATEGORÍA]],TBL_RankingData,3,FALSE)) ->  | E8: =IF(OR(TBL_Summary[[#This Row],[COSTE ESTIMADO]]="",TBL_Summary[[#This Row],[COSTE REAL]]=""),"",TBL_Summary[[#This Row],[COSTE ESTIMADO]]-TBL_Summary[[#This Row],[COSTE REAL]]) ->  | F8: =TBL_Summary[[#This Row],[COSTE ESTIMADO]]/SUM(TBL_Summary[COSTE ESTIMADO]) -> 10.1% | J8: Flores y decoración | K8: =TBL_FlowersAndDecor[[#Totals],[ESTIMADO]] -> 3000 | L8: =TBL_FlowersAndDecor[[#Totals],[REAL]] -> 0 | M8: 2999.97 | N8: 3 | O8: 3 | P8: Flores y decoración
B9: Fotografías y vídeo | C9: =VLOOKUP(TBL_Summary[[#This Row],[CATEGORÍA]],TBL_RankingData,2,FALSE) -> 2,500 € | D9: =IF(VLOOKUP(TBL_Summary[[#This Row],[CATEGORÍA]],TBL_RankingData,3,FALSE)=0,"",VLOOKUP(TBL_Summary[[#This Row],[CATEGORÍA]],TBL_RankingData,3,FALSE)) ->  | E9: =IF(OR(TBL_Summary[[#This Row],[COSTE ESTIMADO]]="",TBL_Summary[[#This Row],[COSTE REAL]]=""),"",TBL_Summary[[#This Row],[COSTE ESTIMADO]]-TBL_Summary[[#This Row],[COSTE REAL]]) ->  | F9: =TBL_Summary[[#This Row],[COSTE ESTIMADO]]/SUM(TBL_Summary[COSTE ESTIMADO]) -> 8.4% | J9: Música | K9: =TBL_Music[[#Totals],[ESTIMADO]] -> 1800 | L9: =TBL_Music[[#Totals],[REAL]] -> 0 | M9: 1799.96 | N9: 5 | O9: 4 | P9: Fotografías y vídeo
B10: Música | C10: =VLOOKUP(TBL_Summary[[#This Row],[CATEGORÍA]],TBL_RankingData,2,FALSE) -> 1,800 € | D10: =IF(VLOOKUP(TBL_Summary[[#This Row],[CATEGORÍA]],TBL_RankingData,3,FALSE)=0,"",VLOOKUP(TBL_Summary[[#This Row],[CATEGORÍA]],TBL_RankingData,3,FALSE)) ->  | E10: =IF(OR(TBL_Summary[[#This Row],[COSTE ESTIMADO]]="",TBL_Summary[[#This Row],[COSTE REAL]]=""),"",TBL_Summary[[#This Row],[COSTE ESTIMADO]]-TBL_Summary[[#This Row],[COSTE REAL]]) ->  | F10: =TBL_Summary[[#This Row],[COSTE ESTIMADO]]/SUM(TBL_Summary[COSTE ESTIMADO]) -> 6.1% | J10: Fotografías y vídeo | K10: =TBL_PhotographsAndVideo[[#Totals],[ESTIMADO]] -> 2500 | L10: =TBL_PhotographsAndVideo[[#Totals],[REAL]] -> 0 | M10: 2499.95 | N10: 4 | O10: 5 | P10: Música
B11: Detalles y regalos | C11: =VLOOKUP(TBL_Summary[[#This Row],[CATEGORÍA]],TBL_RankingData,2,FALSE) -> 1,100 € | D11: =IF(VLOOKUP(TBL_Summary[[#This Row],[CATEGORÍA]],TBL_RankingData,3,FALSE)=0,"",VLOOKUP(TBL_Summary[[#This Row],[CATEGORÍA]],TBL_RankingData,3,FALSE)) ->  | E11: =IF(OR(TBL_Summary[[#This Row],[COSTE ESTIMADO]]="",TBL_Summary[[#This Row],[COSTE REAL]]=""),"",TBL_Summary[[#This Row],[COSTE ESTIMADO]]-TBL_Summary[[#This Row],[COSTE REAL]]) ->  | F11: =TBL_Summary[[#This Row],[COSTE ESTIMADO]]/SUM(TBL_Summary[COSTE ESTIMADO]) -> 3.7% | J11: Detalles y regalos | K11: =TBL_FavorsAndGifts[[#Totals],[ESTIMADO]] -> 1100 | L11: =TBL_FavorsAndGifts[[#Totals],[REAL]] -> 0 | M11: 1099.94 | N11: 6 | O11: 6 | P11: Detalles y regalos
B12: =P12 -> Anillos de boda | C12: =VLOOKUP(TBL_Summary[[#This Row],[CATEGORÍA]],TBL_RankingData,2,FALSE) -> 1,100 € | D12: =IF(VLOOKUP(TBL_Summary[[#This Row],[CATEGORÍA]],TBL_RankingData,3,FALSE)=0,"",VLOOKUP(TBL_Summary[[#This Row],[CATEGORÍA]],TBL_RankingData,3,FALSE)) ->  | E12: =IF(OR(TBL_Summary[[#This Row],[COSTE ESTIMADO]]="",TBL_Summary[[#This Row],[COSTE REAL]]=""),"",TBL_Summary[[#This Row],[COSTE ESTIMADO]]-TBL_Summary[[#This Row],[COSTE REAL]]) ->  | F12: =TBL_Summary[[#This Row],[COSTE ESTIMADO]]/SUM(TBL_Summary[COSTE ESTIMADO]) -> 3.7% | J12: Ceremonia | K12: =TBL_Ceremony[[#Totals],[ESTIMADO]] -> 800 | L12: =TBL_Ceremony[[#Totals],[REAL]] -> 0 | M12: 799.93 | N12: 8 | O12: 7 | P12: Anillos de boda
B13: =P13 -> Ceremonia | C13: =VLOOKUP(TBL_Summary[[#This Row],[CATEGORÍA]],TBL_RankingData,2,FALSE) -> 800 € | D13: =IF(VLOOKUP(TBL_Summary[[#This Row],[CATEGORÍA]],TBL_RankingData,3,FALSE)=0,"",VLOOKUP(TBL_Summary[[#This Row],[CATEGORÍA]],TBL_RankingData,3,FALSE)) ->  | E13: =IF(OR(TBL_Summary[[#This Row],[COSTE ESTIMADO]]="",TBL_Summary[[#This Row],[COSTE REAL]]=""),"",TBL_Summary[[#This Row],[COSTE ESTIMADO]]-TBL_Summary[[#This Row],[COSTE REAL]]) ->  | F13: =TBL_Summary[[#This Row],[COSTE ESTIMADO]]/SUM(TBL_Summary[COSTE ESTIMADO]) -> 2.7% | J13: Papelería | K13: =TBL_Stationery[[#Totals],[ESTIMADO]] -> 500 | L13: =TBL_Stationery[[#Totals],[REAL]] -> 0 | M13: 499.92 | N13: 9 | O13: 8 | P13: Ceremonia
B14: =P14 -> Papelería | C14: =VLOOKUP(TBL_Summary[[#This Row],[CATEGORÍA]],TBL_RankingData,2,FALSE) -> 500 € | D14: =IF(VLOOKUP(TBL_Summary[[#This Row],[CATEGORÍA]],TBL_RankingData,3,FALSE)=0,"",VLOOKUP(TBL_Summary[[#This Row],[CATEGORÍA]],TBL_RankingData,3,FALSE)) ->  | E14: =IF(OR(TBL_Summary[[#This Row],[COSTE ESTIMADO]]="",TBL_Summary[[#This Row],[COSTE REAL]]=""),"",TBL_Summary[[#This Row],[COSTE ESTIMADO]]-TBL_Summary[[#This Row],[COSTE REAL]]) ->  | F14: =TBL_Summary[[#This Row],[COSTE ESTIMADO]]/SUM(TBL_Summary[COSTE ESTIMADO]) -> 1.7% | J14: Anillos de boda | K14: =TBL_WeddingRings[[#Totals],[ESTIMADO]] -> 1100 | L14: =TBL_WeddingRings[[#Totals],[REAL]] -> 0 | M14: 1099.91 | N14: 7 | O14: 9 | P14: Papelería
B15: =P15 -> Transporte | C15: =VLOOKUP(TBL_Summary[[#This Row],[CATEGORÍA]],TBL_RankingData,2,FALSE) -> 450 € | D15: =IF(VLOOKUP(TBL_Summary[[#This Row],[CATEGORÍA]],TBL_RankingData,3,FALSE)=0,"",VLOOKUP(TBL_Summary[[#This Row],[CATEGORÍA]],TBL_RankingData,3,FALSE)) ->  | E15: =IF(OR(TBL_Summary[[#This Row],[COSTE ESTIMADO]]="",TBL_Summary[[#This Row],[COSTE REAL]]=""),"",TBL_Summary[[#This Row],[COSTE ESTIMADO]]-TBL_Summary[[#This Row],[COSTE REAL]]) ->  | F15: =TBL_Summary[[#This Row],[COSTE ESTIMADO]]/SUM(TBL_Summary[COSTE ESTIMADO]) -> 1.5% | J15: Transporte | K15: =TBL_Transportation[[#Totals],[ESTIMADO]] -> 450 | L15: =TBL_Transportation[[#Totals],[REAL]] -> 0 | M15: 449.9 | N15: 10 | O15: 10 | P15: Transporte
B16: Total | C16: =SUBTOTAL(109,TBL_Summary[COSTE ESTIMADO]) -> 29,750 € | D16: =SUBTOTAL(109,TBL_Summary[COSTE REAL]) -> 15,700 € | E16: =TBL_Summary[[#Totals],[COSTE ESTIMADO]]-TBL_Summary[[#Totals],[COSTE REAL]] -> 14,050 € | F16: =SUBTOTAL(109,TBL_Summary[PRESUPUESTO %]) -> 100%

Sheet Detalles del presupuesto
B2: DETALLES DEL PRESUPUESTO
B4: RECEPCIÓN | C4: ESTIMADO | D4: REAL | E4: VARIANZA
B5: Recinto y alquiler | C5: 8,000.00 € | D5: 7,800.00 € | E5: =IF(OR(TBL_Reception[[#This Row],[ESTIMADO]]="",TBL_Reception[[#This Row],[REAL]]=""),"",TBL_Reception[[#This Row],[ESTIMADO]]-TBL_Reception[[#This Row],[REAL]]) -> 200.00 €
B6: Comidas y servicio | C6: 4,000.00 € | D6: 4,200.00 € | E6: =IF(OR(TBL_Reception[[#This Row],[ESTIMADO]]="",TBL_Reception[[#This Row],[REAL]]=""),"",TBL_Reception[[#This Row],[ESTIMADO]]-TBL_Reception[[#This Row],[REAL]]) -> -200.00 €
B7: Bebidas | C7: 1,000.00 € | D7: 800.00 € | E7: =IF(OR(TBL_Reception[[#This Row],[ESTIMADO]]="",TBL_Reception[[#This Row],[REAL]]=""),"",TBL_Reception[[#This Row],[ESTIMADO]]-TBL_Reception[[#This Row],[REAL]]) -> 200.00 €
B8: Tarta | C8: 1,000.00 € | E8: =IF(OR(TBL_Reception[[#This Row],[ESTIMADO]]="",TBL_Reception[[#This Row],[REAL]]=""),"",TBL_Reception[[#This Row],[ESTIMADO]]-TBL_Reception[[#This Row],[REAL]]) -> 
B9: Gastos varios | C9: 500.00 € | E9: =IF(OR(TBL_Reception[[#This Row],[ESTIMADO]]="",TBL_Reception[[#This Row],[REAL]]=""),"",TBL_Reception[[#This Row],[ESTIMADO]]-TBL_Reception[[#This Row],[REAL]]) -> 
B10: TOTAL DE RECEPCIÓN | C10: =SUBTOTAL(109,TBL_Reception[ESTIMADO]) -> 14,500.00 € | D10: =SUBTOTAL(109,TBL_Reception[REAL]) -> 12,800.00 € | E10: =TBL_Reception[[#Totals],[ESTIMADO]]-TBL_Reception[[#Totals],[REAL]] -> 1,700.00 €
B13: ATUENDO | C13: ESTIMADO | D13: REAL | E13: VARIANZA
B14: Esmoquin, traje o vestidos | C14: 3,000.00 € | D14: 2,900.00 € | E14: =IF(OR(TBL_Attire[[#This Row],[ESTIMADO]]="",TBL_Attire[[#This Row],[REAL]]=""),"",TBL_Attire[[#This Row],[ESTIMADO]]-TBL_Attire[[#This Row],[REAL]]) -> 100.00 €
B15: Arreglos | C15: 100.00 € | E15: =IF(OR(TBL_Attire[[#This Row],[ESTIMADO]]="",TBL_Attire[[#This Row],[REAL]]=""),"",TBL_Attire[[#This Row],[ESTIMADO]]-TBL_Attire[[#This Row],[REAL]]) -> 
B16: Tocado y velo | C16: 200.00 € | E16: =IF(OR(TBL_Attire[[#This Row],[ESTIMADO]]="",TBL_Attire[[#This Row],[REAL]]=""),"",TBL_Attire[[#This Row],[ESTIMADO]]-TBL_Attire[[#This Row],[REAL]]) -> 
B17: Accesorios | C17: 100.00 € | E17: =IF(OR(TBL_Attire[[#This Row],[ESTIMADO]]="",TBL_Attire[[#This Row],[REAL]]=""),"",TBL_Attire[[#This Row],[ESTIMADO]]-TBL_Attire[[#This Row],[REAL]]) -> 
B18: Peluquería y maquillaje | C18: 500.00 € | E18: =IF(OR(TBL_Attire[[#This Row],[ESTIMADO]]="",TBL_Attire[[#This Row],[REAL]]=""),"",TBL_Attire[[#This Row],[ESTIMADO]]-TBL_Attire[[#This Row],[REAL]]) -> 
B19: Gastos varios | C19: 100.00 € | E19: =IF(OR(TBL_Attire[[#This Row],[ESTIMADO]]="",TBL_Attire[[#This Row],[REAL]]=""),"",TBL_Attire[[#This Row],[ESTIMADO]]-TBL_Attire[[#This Row],[REAL]]) -> 
B20: TOTAL DE ATUENDO | C20: =SUBTOTAL(109,TBL_Attire[ESTIMADO]) -> 4,000.00 € | D20: =SUBTOTAL(109,TBL_Attire[REAL]) -> 2,900.00 € | E20: =TBL_Attire[[#Totals],[ESTIMADO]]-TBL_Attire[[#Totals],[REAL]] -> 1,100.00 €
B23: FLORES & DECORACIÓN | C23: ESTIMADO | D23: REAL | E23: VARIANZA
B24: Arreglos florales para la ceremonia | C24: 1,000.00 € | E24: =IF(OR(TBL_FlowersAndDecor[[#This Row],[ESTIMADO]]="",TBL_FlowersAndDecor[[#This Row],[REAL]]=""),"",TBL_FlowersAndDecor[[#This Row],[ESTIMADO]]-TBL_FlowersAndDecor[[#This Row],[REAL]]) -> 
B25: Flores y canastilla de la niña | C25: 500.00 € | E25: =IF(OR(TBL_FlowersAndDecor[[#This Row],[ESTIMADO]]="",TBL_FlowersAndDecor[[#This Row],[REAL]]=""),"",TBL_FlowersAndDecor[[#This Row],[ESTIMADO]]-TBL_FlowersAndDecor[[#This Row],[REAL]]) -> 
B26: Cojín para alianzas | C26: 100.00 € | E26: =IF(OR(TBL_FlowersAndDecor[[#This Row],[ESTIMADO]]="",TBL_FlowersAndDecor[[#This Row],[REAL]]=""),"",TBL_FlowersAndDecor[[#This Row],[ESTIMADO]]-TBL_FlowersAndDecor[[#This Row],[REAL]]) -> 
B27: Ramos | C27: 500.00 € | E27: =IF(OR(TBL_FlowersAndDecor[[#This Row],[ESTIMADO]]="",TBL_FlowersAndDecor[[#This Row],[REAL]]=""),"",TBL_FlowersAndDecor[[#This Row],[ESTIMADO]]-TBL_FlowersAndDecor[[#This Row],[REAL]]) -> 
B28: Flores para el ojal | C28: 100.00 € | E28: =IF(OR(TBL_FlowersAndDecor[[#This Row],[ESTIMADO]]="",TBL_FlowersAndDecor[[#This Row],[REAL]]=""),"",TBL_FlowersAndDecor[[#This Row],[ESTIMADO]]-TBL_FlowersAndDecor[[#This Row],[REAL]]) -> 
B29: Ramilletes | C29: 200.00 € | E29: =IF(OR(TBL_FlowersAndDecor[[#This Row],[ESTIMADO]]="",TBL_FlowersAndDecor[[#This Row],[REAL]]=""),"",TBL_FlowersAndDecor[[#This Row],[ESTIMADO]]-TBL_FlowersAndDecor[[#This Row],[REAL]]) -> 
B30: Decoración de recepción | C30: 300.00 € | E30: =IF(OR(TBL_FlowersAndDecor[[#This Row],[ESTIMADO]]="",TBL_FlowersAndDecor[[#This Row],[REAL]]=""),"",TBL_FlowersAndDecor[[#This Row],[ESTIMADO]]-TBL_FlowersAndDecor[[#This Row],[REAL]]) -> 
B31: Iluminación | C31: 200.00 € | E31: =IF(OR(TBL_FlowersAndDecor[[#This Row],[ESTIMADO]]="",TBL_FlowersAndDecor[[#This Row],[REAL]]=""),"",TBL_FlowersAndDecor[[#This Row],[ESTIMADO]]-TBL_FlowersAndDecor[[#This Row],[REAL]]) -> 
B32: Gastos varios | C32: 100.00 € | E32: =IF(OR(TBL_FlowersAndDecor[[#This Row],[ESTIMADO]]="",TBL_FlowersAndDecor[[#This Row],[REAL]]=""),"",TBL_FlowersAndDecor[[#This Row],[ESTIMADO]]-TBL_FlowersAndDecor[[#This Row],[REAL]]) -> 
B33: TOTAL DE FLORES & DECORACIÓN | C33: =SUBTOTAL(109,TBL_FlowersAndDecor[ESTIMADO]) -> 3,000.00 € | D33: =SUBTOTAL(109,TBL_FlowersAndDecor[REAL]) -> 0.00 € | E33: =TBL_FlowersAndDecor[[#Totals],[ESTIMADO]]-TBL_FlowersAndDecor[[#Totals],[REAL]] -> 3,000.00 €
B36: MÚSICA | C36: ESTIMADO | D36: REAL | E36: VARIANZA
B37: Músicos para la ceremonia | C37: 700.00 € | E37: =IF(OR(TBL_Music[[#This Row],[ESTIMADO]]="",TBL_Music[[#This Row],[REAL]]=""),"",TBL_Music[[#This Row],[ESTIMADO]]-TBL_Music[[#This Row],[REAL]]) -> 
B38: Músicos para el cóctel | C38: 300.00 € | E38: =IF(OR(TBL_Music[[#This Row],[ESTIMADO]]="",TBL_Music[[#This Row],[REAL]]=""),"",TBL_Music[[#This Row],[ESTIMADO]]-TBL_Music[[#This Row],[REAL]]) -> 
B39: Banda, DJ o entretenimiento para la recepción | C39: 200.00 € | E39: =IF(OR(TBL_Music[[#This Row],[ESTIMADO]]="",TBL_Music[[#This Row],[REAL]]=""),"",TBL_Music[[#This Row],[ESTIMADO]]-TBL_Music[[#This Row],[REAL]]) -> 
B40: Sistema de sonido o alquiler de pista de baile | C40: 400.00 € | E40: =IF(OR(TBL_Music[[#This Row],[ESTIMADO]]="",TBL_Music[[#This Row],[REAL]]=""),"",TBL_Music[[#This Row],[ESTIMADO]]-TBL_Music[[#This Row],[REAL]]) -> 
B41: Gastos varios | C41: 200.00 € | E41: =IF(OR(TBL_Music[[#This Row],[ESTIMADO]]="",TBL_Music[[#This Row],[REAL]]=""),"",TBL_Music[[#This Row],[ESTIMADO]]-TBL_Music[[#This Row],[REAL]]) -> 
B42: TOTAL DE MÚSICA | C42: =SUBTOTAL(109,TBL_Music[ESTIMADO]) -> 1,800.00 € | D42: =SUBTOTAL(109,TBL_Music[REAL]) -> 0.00 € | E42: =TBL_Music[[#Totals],[ESTIMADO]]-TBL_Music[[#Totals],[REAL]] -> 1,800.00 €
B45: VÍDEO & FOTOGRAFÍA | C45: ESTIMADO | D45: REAL | E45: VARIANZA
B46: Fotografía | C46: 1,000.00 € | E46: =IF(OR(TBL_PhotographsAndVideo[[#This Row],[ESTIMADO]]="",TBL_PhotographsAndVideo[[#This Row],[REAL]]=""),"",TBL_PhotographsAndVideo[[#This Row],[ESTIMADO]]-TBL_PhotographsAndVideo[[#This Row],[REAL]]) -> 
B47: Vídeo | C47: 800.00 € | E47: =IF(OR(TBL_PhotographsAndVideo[[#This Row],[ESTIMADO]]="",TBL_PhotographsAndVideo[[#This Row],[REAL]]=""),"",TBL_PhotographsAndVideo[[#This Row],[ESTIMADO]]-TBL_PhotographsAndVideo[[#This Row],[REAL]]) -> 
B48: Copias adicionales y álbumes | C48: 500.00 € | E48: =IF(OR(TBL_PhotographsAndVideo[[#This Row],[ESTIMADO]]="",TBL_PhotographsAndVideo[[#This Row],[REAL]]=""),"",TBL_PhotographsAndVideo[[#This Row],[ESTIMADO]]-TBL_PhotographsAndVideo[[#This Row],[REAL]]) -> 
B49: Gastos varios | C49: 200.00 € | E49: =IF(OR(TBL_PhotographsAndVideo[[#This Row],[ESTIMADO]]="",TBL_PhotographsAndVideo[[#This Row],[REAL]]=""),"",TBL_PhotographsAndVideo[[#This Row],[ESTIMADO]]-TBL_PhotographsAndVideo[[#This Row],[REAL]]) -> 
B50: TOTAL DE VÍDEO & FOTOGRAFÍA | C50: =SUBTOTAL(109,TBL_PhotographsAndVideo[ESTIMADO]) -> 2,500.00 € | D50: =SUBTOTAL(109,TBL_PhotographsAndVideo[REAL]) -> 0.00 € | E50: =TBL_PhotographsAndVideo[[#Totals],[ESTIMADO]]-TBL_PhotographsAndVideo[[#Totals],[REAL]] -> 2,500.00 €
B53: RECUERDOS & REGALOS | C53: ESTIMADO | D53: REAL | E53: VARIANZA
B54: Regalos de bienvenida | C54: 700.00 € | E54: =IF(OR(TBL_FavorsAndGifts[[#This Row],[ESTIMADO]]="",TBL_FavorsAndGifts[[#This Row],[REAL]]=""),"",TBL_FavorsAndGifts[[#This Row],[ESTIMADO]]-TBL_FavorsAndGifts[[#This Row],[REAL]]) -> 
B55: Regalos de la fiesta | C55: 200.00 € | E55: =IF(OR(TBL_FavorsAndGifts[[#This Row],[ESTIMADO]]="",TBL_FavorsAndGifts[[#This Row],[REAL]]=""),"",TBL_FavorsAndGifts[[#This Row],[ESTIMADO]]-TBL_FavorsAndGifts[[#This Row],[REAL]]) -> 
B56: Gastos varios | C56: 200.00 € | E56: =IF(OR(TBL_FavorsAndGifts[[#This Row],[ESTIMADO]]="",TBL_FavorsAndGifts[[#This Row],[REAL]]=""),"",TBL_FavorsAndGifts[[#This Row],[ESTIMADO]]-TBL_FavorsAndGifts[[#This Row],[REAL]]) -> 
B57: TOTAL DE RECUERDOS & REGALOS | C57: =SUBTOTAL(109,TBL_FavorsAndGifts[ESTIMADO]) -> 1,100.00 € | D57: =SUBTOTAL(109,TBL_FavorsAndGifts[REAL]) -> 0.00 € | E57: =TBL_FavorsAndGifts[[#Totals],[ESTIMADO]]-TBL_FavorsAndGifts[[#Totals],[REAL]] -> 1,100.00 €
B60: CEREMONIA | C60: ESTIMADO | D60: REAL | E60: VARIANZA
B61: Cuota de sitio | C61: 500.00 € | E61: =IF(OR(TBL_Ceremony[[#This Row],[ESTIMADO]]="",TBL_Ceremony[[#This Row],[REAL]]=""),"",TBL_Ceremony[[#This Row],[ESTIMADO]]-TBL_Ceremony[[#This Row],[REAL]]) -> 
B62: Honorarios del oficiante o donativo a iglesia | C62: 200.00 € | E62: =IF(OR(TBL_Ceremony[[#This Row],[ESTIMADO]]="",TBL_Ceremony[[#This Row],[REAL]]=""),"",TBL_Ceremony[[#This Row],[ESTIMADO]]-TBL_Ceremony[[#This Row],[REAL]]) -> 
B63: Gastos varios | C63: 100.00 € | E63: =IF(OR(TBL_Ceremony[[#This Row],[ESTIMADO]]="",TBL_Ceremony[[#This Row],[REAL]]=""),"",TBL_Ceremony[[#This Row],[ESTIMADO]]-TBL_Ceremony[[#This Row],[REAL]]) -> 
B64: TOTAL DE LA CEREMONIA | C64: =SUBTOTAL(109,TBL_Ceremony[ESTIMADO]) -> 800.00 € | D64: =SUBTOTAL(109,TBL_Ceremony[REAL]) -> 0.00 € | E64: =TBL_Ceremony[[#Totals],[ESTIMADO]]-TBL_Ceremony[[#Totals],[REAL]] -> 800.00 €
B67: CORTEJO | C67: ESTIMADO | D67: REAL | E67: VARIANZA
B68: Tarjetas de invitación | C68: 50.00 € | E68: =IF(OR(TBL_Stationery[[#This Row],[ESTIMADO]]="",TBL_Stationery[[#This Row],[REAL]]=""),"",TBL_Stationery[[#This Row],[ESTIMADO]]-TBL_Stationery[[#This Row],[REAL]]) -> 
B69: Invitaciones y confirmaciones de asistencia | C69: 100.00 € | E69: =IF(OR(TBL_Stationery[[#This Row],[ESTIMADO]]="",TBL_Stationery[[#This Row],[REAL]]=""),"",TBL_Stationery[[#This Row],[ESTIMADO]]-TBL_Stationery[[#This Row],[REAL]]) -> 
B70: Programas | C70: 50.00 € | E70: =IF(OR(TBL_Stationery[[#This Row],[ESTIMADO]]="",TBL_Stationery[[#This Row],[REAL]]=""),"",TBL_Stationery[[#This Row],[ESTIMADO]]-TBL_Stationery[[#This Row],[REAL]]) -> 
B71: Tarjetas de asiento y colocación | C71: 50.00 € | E71: =IF(OR(TBL_Stationery[[#This Row],[ESTIMADO]]="",TBL_Stationery[[#This Row],[REAL]]=""),"",TBL_Stationery[[#This Row],[ESTIMADO]]-TBL_Stationery[[#This Row],[REAL]]) -> 
B72: Tarjetas de menú | C72: 50.00 € | E72: =IF(OR(TBL_Stationery[[#This Row],[ESTIMADO]]="",TBL_Stationery[[#This Row],[REAL]]=""),"",TBL_Stationery[[#This Row],[ESTIMADO]]-TBL_Stationery[[#This Row],[REAL]]) -> 
B73: Notas de agradecimiento | C73: 50.00 € | E73: =IF(OR(TBL_Stationery[[#This Row],[ESTIMADO]]="",TBL_Stationery[[#This Row],[REAL]]=""),"",TBL_Stationery[[#This Row],[ESTIMADO]]-TBL_Stationery[[#This Row],[REAL]]) -> 
B74: Gastos de envío | C74: 50.00 € | E74: =IF(OR(TBL_Stationery[[#This Row],[ESTIMADO]]="",TBL_Stationery[[#This Row],[REAL]]=""),"",TBL_Stationery[[#This Row],[ESTIMADO]]-TBL_Stationery[[#This Row],[REAL]]) -> 
B75: Gastos varios | C75: 100.00 € | E75: =IF(OR(TBL_Stationery[[#This Row],[ESTIMADO]]="",TBL_Stationery[[#This Row],[REAL]]=""),"",TBL_Stationery[[#This Row],[ESTIMADO]]-TBL_Stationery[[#This Row],[REAL]]) -> 
B76: TOTAL DE CORTEJO | C76: =SUBTOTAL(109,TBL_Stationery[ESTIMADO]) -> 500.00 € | D76: =SUBTOTAL(109,TBL_Stationery[REAL]) -> 0.00 € | E76: =TBL_Stationery[[#Totals],[ESTIMADO]]-TBL_Stationery[[#Totals],[REAL]] -> 500.00 €
B79: ANILLOS DE BODA | C79: ESTIMADO | D79: REAL | E79: VARIANZA
B80: Alianzas | C80: 1,000.00 € | E80: =IF(OR(TBL_WeddingRings[[#This Row],[ESTIMADO]]="",TBL_WeddingRings[[#This Row],[REAL]]=""),"",TBL_WeddingRings[[#This Row],[ESTIMADO]]-TBL_WeddingRings[[#This Row],[REAL]]) -> 
B81: Accesorios de anillos | C81: 100.00 € | E81: =IF(OR(TBL_WeddingRings[[#This Row],[ESTIMADO]]="",TBL_WeddingRings[[#This Row],[REAL]]=""),"",TBL_WeddingRings[[#This Row],[ESTIMADO]]-TBL_WeddingRings[[#This Row],[REAL]]) -> 
B82: TOTAL DE ANILLOS DE BODA | C82: =SUBTOTAL(109,TBL_WeddingRings[ESTIMADO]) -> 1,100.00 € | D82: =SUBTOTAL(109,TBL_WeddingRings[REAL]) -> 0.00 € | E82: =TBL_WeddingRings[[#Totals],[ESTIMADO]]-TBL_WeddingRings[[#Totals],[REAL]] -> 1,100.00 €
B85: TRANSPORTE | C85: ESTIMADO | D85: REAL | E85: VARIANZA
B86: Alquiler de coche principal | C86: 100.00 € | E86: =IF(OR(TBL_Transportation[[#This Row],[ESTIMADO]]="",TBL_Transportation[[#This Row],[REAL]]=""),"",TBL_Transportation[[#This Row],[ESTIMADO]]-TBL_Transportation[[#This Row],[REAL]]) -> 
B87: Alquiler de coche para invitados | C87: 100.00 € | E87: =IF(OR(TBL_Transportation[[#This Row],[ESTIMADO]]="",TBL_Transportation[[#This Row],[REAL]]=""),"",TBL_Transportation[[#This Row],[ESTIMADO]]-TBL_Transportation[[#This Row],[REAL]]) -> 
B88: Transporte para invitados de fuera de la ciudad | C88: 100.00 € | E88: =IF(OR(TBL_Transportation[[#This Row],[ESTIMADO]]="",TBL_Transportation[[#This Row],[REAL]]=""),"",TBL_Transportation[[#This Row],[ESTIMADO]]-TBL_Transportation[[#This Row],[REAL]]) -> 
B89: Servicio de estacionamiento | C89: 50.00 € | E89: =IF(OR(TBL_Transportation[[#This Row],[ESTIMADO]]="",TBL_Transportation[[#This Row],[REAL]]=""),"",TBL_Transportation[[#This Row],[ESTIMADO]]-TBL_Transportation[[#This Row],[REAL]]) -> 
B90: Gastos varios | C90: 100.00 € | E90: =IF(OR(TBL_Transportation[[#This Row],[ESTIMADO]]="",TBL_Transportation[[#This Row],[REAL]]=""),"",TBL_Transportation[[#This Row],[ESTIMADO]]-TBL_Transportation[[#This Row],[REAL]]) -> 
B91: TOTAL DE TRANSPORTE | C91: =SUBTOTAL(109,TBL_Transportation[ESTIMADO]) -> 450.00 € | D91: =SUBTOTAL(109,TBL_Transportation[REAL]) -> 0.00 € | E91: =TBL_Transportation[[#Totals],[ESTIMADO]]-TBL_Transportation[[#Totals],[REAL]] -> 450.00 €
